fUSD/lending_fUSD_20240922
["ID","MTS","AMOUNT","RATE_DAILY","PERIOD"]
[338888558,1727014238022,-496.82884039,0.000128,2]
[338888560,1727014238034,-646.57486979,0.000128,2]
[338888562,1727014238046,-2002.55562,0.000128,2]
[338888565,1727014238068,-83668.93841354,0.000128,2]
[338888567,1727014238078,-187.2,0.00012817,2]
[338888569,1727014238088,-799.0,0.0001284,2]
[338888571,1727014238097,-500.0,0.00012876,2]
[338888573,1727014238107,-159.8,0.00012912,2]
[338888575,1727014238116,-5867.0,0.00012998,2]
[338888577,1727014238126,-150.0,0.00012998,2]
[338888578,1727014238136,-13492.0,0.00012998,2]
[338888579,1727014238145,-404.261,0.00012999,2]
[338888580,1727014238155,-1100.0,0.00013,2]
[338888581,1727014238164,-1064.1,0.00013,2]
[338888582,1727014238174,-150.0,0.00013,2]
[338888583,1727014238183,-150.0,0.00013044,2]
[338888584,1727014238192,-150.0,0.00013044,2]
[338888585,1727014238202,-150.0,0.00013044,2]
[338888586,1727014238212,-150.0,0.00013044,2]
[338888587,1727014238222,-151.0,0.00013094,2]
[338888588,1727014238231,-448.0,0.00013097,2]
[338888589,1727014238241,-1262.0,0.00013097,2]
[338888590,1727014238251,-1549.0,0.00013097,2]
[338888591,1727014238260,-625.0,0.00013097,2]
[338888592,1727014238269,-933.0,0.00013097,2]
[338888593,1727014238281,-558.0,0.00013097,2]
[338888594,1727014238290,-1903.0,0.00013097,2]
[338888596,1727014238300,-553.0,0.00013097,2]
[338888597,1727014238309,-282.036,0.00013097,2]
[338888598,1727014238319,-1913.0,0.00013097,2]
[338888599,1727014238329,-3341.0,0.00013097,2]
[338888600,1727014238338,-1371.627,0.00013097,2]
[338888601,1727014238349,-400.0,0.00013147,2]
[338888602,1727014238359,-14947.35,0.00013318,2]
[338888603,1727014238368,-20542.0,0.000135,3]
[338888604,1727014238378,-799.0,0.00013516,2]
[338888605,1727014238387,-15147.23,0.00013532,2]
[338888606,1727014238398,-15792.61099953,0.00013535,2]
[338888611,1727014239376,-389.44550813,0.00013535,2]
[338888612,1727014239439,-18909.56839234,0.00013535,2]
[338888613,1727014239449,-1522.28580701,0.00013599,2]
[338888614,1727014239460,-3157.17049299,0.00013599,2]
[338888615,1727014239470,-1000.0,0.00013599,2]
[338888616,1727014239479,-500.0,0.000137,5]
[338888617,1727014239489,-150.0,0.00013768,2]
[338888618,1727014239501,-150.0,0.00013768,2]
[338888619,1727014239511,-219.09233891,0.00013788,2]
[338888620,1727014239521,-151.0,0.000138,2]
[338888621,1727014239533,-151.0,0.000138,2]
[338888622,1727014239542,-500.0,0.0001386,2]
[338888623,1727014239552,-200.0,0.0001386,2]
[338888624,1727014239561,-150.0,0.00013885,2]
[338888625,1727014239571,-151.0,0.000139,2]
[338888626,1727014239580,-150.0,0.00013923,2]
[338888627,1727014239590,-150.0,0.00013946,2]
[338888628,1727014239600,-126.26306536,0.00013969,2]
[338888629,1727014239612,-473.73693464,0.00013969,2]
[338888630,1727014239622,-155.82709448,0.00013971,2]
[338888631,1727014239632,-151.0,0.00013972,2]
[338888632,1727014239642,-178.922867,0.00013972,2]
[338888633,1727014239651,-23374.07727,0.00013972,2]
[338888634,1727014239661,-1528.55597,0.00013972,2]
[338888635,1727014239670,-457.898033,0.00013972,2]
[338888636,1727014239680,-184.073224,0.00013972,2]
[338888637,1727014239690,-305.265356,0.00013972,2]
[338888638,1727014239700,-17632.081759,0.00013972,2]
[338888639,1727014239711,-410.702495,0.00013972,2]
[338888640,1727014239722,-213.4458885,0.00013981,2]
[338888641,1727014239733,-2083.4114812,0.0001399,2]
[338888642,1727014239743,-158.6046872,0.0001399,2]
[338888643,1727014239759,-1107.43434204,0.00014,4]
[338888644,1727014239769,-4991.0554,0.00014042,2]
[338888645,1727014239778,-1244.28,0.00014055,2]
[338888646,1727014239789,-433.74,0.00014055,2]
[338888647,1727014239799,-27510.95192164,0.000141,2]
[338888648,1727014239812,-151.0,0.000141,2]
[338888649,1727014239821,-1007.93204647,0.00014123,3]
[338888650,1727014239833,-13235.68885203,0.00014123,3]
[338888651,1727014239843,-14243.6208985,0.00014132,3]
[338888652,1727014239853,-265.75363137,0.00014142,2]
[338888653,1727014239862,-500.0,0.00014142,2]
[338888654,1727014239872,-500.0,0.00014142,2]
[338888655,1727014239885,-23374.07727,0.00014143,2]
[338888656,1727014239895,-1528.55597,0.00014143,2]
[338888657,1727014239904,-457.898033,0.00014143,2]
[338888658,1727014239914,-305.265356,0.00014143,2]
[338888659,1727014239923,-17632.081759,0.00014143,2]
[338888660,1727014239933,-410.702495,0.00014143,2]
[338888661,1727014239943,-177.35335162,0.00014171,2]
[338888662,1727014239952,-14243.6208985,0.00014182,3]
[338888663,1727014239962,-431.93,0.00014192,2]
[338888664,1727014239972,-154.68,0.00014192,2]
[338888665,1727014239981,-358.06,0.00014192,2]
[338888666,1727014239990,-178.69,0.00014192,2]
[338888667,1727014240001,-150.0,0.00014192,2]
[338888668,1727014240010,-302.91,0.00014192,2]
[338888669,1727014240020,-150.0,0.00014192,2]
[338888670,1727014240029,-358.06,0.00014192,2]
[338888671,1727014240039,-150.0,0.00014192,2]
[338888672,1727014240049,-428.22,0.00014192,2]
[338888673,1727014240058,-150.0,0.00014192,2]
[338888674,1727014240067,-150.0,0.00014192,2]
[338888675,1727014240077,-358.06,0.00014192,2]
[338888676,1727014240087,-150.0,0.00014192,2]
[338888677,1727014240096,-150.0,0.00014192,2]
[338888678,1727014240106,-358.06,0.00014192,2]
[338888679,1727014240115,-428.22,0.00014192,2]
[338888680,1727014240124,-150.0,0.00014192,2]
[338888681,1727014240134,-428.22,0.00014192,2]
[338888682,1727014240143,-160.85,0.00014192,2]
[338888683,1727014240153,-150.0,0.00014192,2]
[338888684,1727014240163,-150.0,0.00014192,2]
[338888685,1727014240172,-428.22,0.00014192,2]
[338888686,1727014240181,-150.0,0.00014192,2]
[338888687,1727014240191,-426.52,0.00014192,2]
[338888688,1727014240200,-150.0,0.00014192,2]
[338888689,1727014240209,-799.0,0.00014192,2]
[338888690,1727014240220,-213.1808972,0.00014207,2]
[338888691,1727014240229,-500.0,0.00014224,2]
[338888692,1727014240238,-177.35335162,0.00014229,2]
[338888693,1727014240247,-500.0,0.00014233,2]
[338888694,1727014240256,-500.0,0.00014242,2]
[338888695,1727014240265,-4390.45043,0.0001425,2]
[338888696,1727014240275,-500.0,0.0001425,2]
[338888697,1727014240286,-500.0,0.00014259,2]
[338888698,1727014240295,-500.0,0.00014268,2]
[338888699,1727014240304,-1862.0050268,0.00014275,2]
[338888700,1727014240314,-213.4458885,0.00014275,2]
[338888701,1727014240323,-500.0,0.00014277,2]
[338888702,1727014240332,-14243.6208985,0.00014285,3]
[338888703,1727014240341,-500.0,0.00014286,2]
[338888704,1727014240351,-500.0,0.00014286,2]
[338888705,1727014240360,-177.35335162,0.00014286,2]
[338888706,1727014240369,-14243.6208985,0.00014293,3]
[338888707,1727014240379,-500.0,0.00014294,2]
[338888708,1727014240388,-500.0,0.00014294,2]
[338888709,1727014240398,-482.037246,0.000143,2]
[338888710,1727014240407,-150.599076,0.000143,2]
[338888711,1727014240418,-171.39262282,0.000143,2]
[338888712,1727014240428,-14243.6208985,0.00014303,3]
[338888713,1727014240437,-500.0,0.00014303,2]
[338888714,1727014240446,-500.0,0.00014303,2]
[338888715,1727014240456,-500.0,0.00014312,2]
[338888716,1727014240465,-500.0,0.00014312,2]
[338888717,1727014240475,-500.0,0.00014312,2]
[338888718,1727014240486,-175.02007746,0.00014312,2]
[338888719,1727014240496,-500.0,0.00014312,2]
[338888720,1727014240506,-500.0,0.00014312,2]
[338888721,1727014240516,-23374.07727,0.00014313,2]
[338888722,1727014240526,-1528.55597,0.00014313,2]
[338888723,1727014240537,-457.898033,0.00014313,2]
[338888724,1727014240547,-184.073224,0.00014313,2]
[338888725,1727014240556,-305.265356,0.00014313,2]
[338888726,1727014240565,-17632.081759,0.00014313,2]
[338888727,1727014240574,-410.702495,0.00014313,2]
[338888728,1727014240584,-222.0,0.00014313,2]
[338888729,1727014240593,-500.0,0.00014321,2]
[338888730,1727014240603,-500.0,0.00014321,2]
[338888731,1727014240612,-500.0,0.0001433,2]
[338888732,1727014240622,-500.0,0.0001433,2]
[338888733,1727014240631,-500.0,0.00014338,2]
[338888734,1727014240641,-500.0,0.00014338,2]
[338888735,1727014240650,-177.35335162,0.00014343,2]
[338888736,1727014240660,-500.0,0.00014347,2]
[338888737,1727014240670,-500.0,0.00014347,2]
[338888738,1727014240680,-500.0,0.00014347,2]
[338888739,1727014240689,-14243.6208985,0.00014352,3]
[338888740,1727014240699,-500.0,0.00014356,2]
[338888741,1727014240710,-500.0,0.00014356,2]
[338888742,1727014240719,-500.0,0.00014356,2]
[338888743,1727014240729,-14243.6208985,0.00014364,3]
[338888744,1727014240738,-500.0,0.00014365,2]
[338888745,1727014240748,-500.0,0.00014365,2]
[338888746,1727014240759,-500.0,0.00014365,2]
[338888747,1727014240768,-1640.5985724,0.0001437,2]
[338888748,1727014240778,-213.4458885,0.0001437,2]
[338888749,1727014240789,-14243.6208985,0.00014371,3]
[338888750,1727014240799,-500.0,0.00014373,2]
[338888751,1727014240812,-500.0,0.00014373,2]
[338888752,1727014240822,-500.0,0.00014373,2]
[338888753,1727014240833,-500.0,0.00014374,2]
[338888754,1727014240843,-500.0,0.00014374,2]
[338888755,1727014240855,-500.0,0.00014374,2]
[338888756,1727014240866,-1419.192118,0.0001438,2]
[338888757,1727014240875,-213.4458885,0.0001438,2]
[338888758,1727014240886,-28487.241797,0.0001438,3]
[338888759,1727014240896,-14382.6005686,0.0001438,3]
[338888760,1727014240906,-28487.241797,0.00014381,3]
[338888761,1727014240915,-21573.9008528,0.00014381,3]
[338888762,1727014240925,-500.0,0.00014382,2]
[338888763,1727014240935,-8500.0,0.00014382,2]
[338888764,1727014240945,-500.0,0.00014382,2]
[338888765,1727014240954,-500.0,0.00014382,2]
[338888766,1727014240963,-201.34185824,0.0001439,2]
[338888767,1727014240973,-500.20875182,0.0001439,2]
[338888768,1727014240983,-15369.56128559,0.0001439,3]
[338888769,1727014240996,-459.58862286,0.0001439,3]
[338888770,1727014241008,-369.0182371,0.0001439,3]
[338888771,1727014241024,-12289.07365145,0.0001439,3]
[338888772,1727014241035,-17972.7173084,0.0001439,3]
[338888773,1727014241050,-6367.9,0.0001439,3]
[338888774,1727014241061,-18807.1843973,0.0001439,3]
[338888775,1727014241071,-213.4458885,0.0001439,2]
[338888776,1727014241080,-290.1294642,0.0001439,2]
[338888777,1727014241090,-500.0,0.00014391,2]
[338888778,1727014241099,-8500.0,0.00014391,2]
[338888779,1727014241108,-500.0,0.00014391,2]
[338888780,1727014241117,-35000.0,0.00014391,2]
[338888781,1727014241127,-500.0,0.00014391,2]
[338888782,1727014241137,-169.05853933,0.00014393,2]
[338888783,1727014241146,-169.05853928,0.00014394,2]
[338888784,1727014241156,-169.05853928,0.00014396,2]
[338888785,1727014241166,-169.05853928,0.00014397,2]
[338888786,1727014241175,-169.05853928,0.00014399,2]
[338888787,1727014241185,-4693.0,0.00014399,2]
[338888788,1727014241195,-1000.0,0.000144,4]
[338888789,1727014241204,-1000.0,0.000144,5]
[338888790,1727014241214,-1000.0,0.000144,3]
[338888791,1727014241223,-417.0,0.000144,4]
[338888792,1727014241233,-500.0,0.000144,5]
[338888793,1727014241243,-11663.64273617,0.000144,2]
[338888794,1727014241252,-500.0,0.000144,2]
[338888795,1727014241261,-500.0,0.000144,2]
[338888796,1727014241271,-500.0,0.000144,2]
[338888797,1727014241280,-8500.0,0.000144,2]
[338888798,1727014241293,-8054.99490512,0.000144,2]
[338888799,1727014241303,-16283.0011762,0.000144,2]
[338888801,1727014242707,-7449.45847702,0.000144,2]
[338888805,1727014245550,-2078.293557,0.000144,2]
[338888806,1727014245663,-9189.24678978,0.000144,2]
[338888807,1727014245673,-169.05853928,0.000144,2]
[338888808,1727014245682,-500.0,0.000144,2]
[338888809,1727014245692,-671.13403479,0.000144,2]
[338888810,1727014245701,-161.61428303,0.000144,2]
[338888811,1727014245710,-177.35335162,0.000144,2]
[338888812,1727014245720,-1219.5522,0.000144,2]
[338888813,1727014245729,-609.06056097,0.000144,2]
[338888814,1727014245739,-164.67766966,0.000144,2]
[338888815,1727014245748,-1685.06624953,0.000144,2]
[338888816,1727014245757,-150.067,0.000144,2]
[338888817,1727014245766,-1197.7856637,0.00014441,2]
[338888818,1727014245776,-14243.6208985,0.00014451,3]
[338888820,1727014245785,-1428.39845632,0.00014451,3]
[338888830,1727014313371,500.0,0.00010615,2]
[338888832,1727014329096,357.3638,0.000127,2]
[338888833,1727014383323,366.64,0.00011519,2]
[338888834,1727014388582,1705.8688,0.000127,2]
[338888836,1727014592059,-309.575935,0.00013,2]
[338888837,1727014592085,-1018.434239,0.00013,2]
[338888838,1727014592110,-957.69,0.00013,2]
[338888839,1727014843982,861.92,0.00013,2]
[338888840,1727014932565,348.3,0.00011375,2]
[338888841,1727015039386,1050.0,0.00011,2]
[338888842,1727015040508,1100.0,0.00013,2]
[338888843,1727015107908,69128.0,0.00013,2]
[338888844,1727015107944,34074.207226,0.00013,2]
[338888845,1727015167209,510.19577,0.0001,2]
[338888884,1727015431611,-300.0,0.00012899,2]
[338888885,1727015431622,-8.06435349,0.000129,2]
[338888886,1727015431636,-991.93564651,0.000129,2]
[338888887,1727015431646,-3077.57405322,0.000129,2]
[338888888,1727015431655,-177.35335163,0.000129,2]
[338888889,1727015431665,-5799.51033275,0.000129,2]
[338888890,1727015431675,-342.78524565,0.000129,2]
[338888891,1727015431685,-2394.27200954,0.000129,2]
[338888892,1727015431694,-2394.27200954,0.000129,2]
[338888893,1727015431705,-177.35335162,0.00012922,2]
[338888894,1727015431714,-250.0,0.00012932,2]
[338888895,1727015431724,-177.35335162,0.00012944,2]
[338888896,1727015431733,-160.13169986,0.00012973,2]
[338888897,1727015431743,-152.4,0.0001299,2]
[338888898,1727015431752,-152.4,0.0001299,2]
[338888899,1727015431762,-152.4,0.0001299,2]
[338888900,1727015431771,-150.0,0.00012996,2]
[338888901,1727015431780,-29756.38685436,0.00012997,2]
[338888902,1727015431792,-1284.40976051,0.00012997,2]
[338888903,1727015431803,-405.84115355,0.00012997,2]
[338888904,1727015431814,-38728.88450793,0.00012997,2]
[338888905,1727015431826,-575.10458265,0.00012997,2]
[338888906,1727015431837,-38012.90459608,0.00012997,2]
[338888907,1727015431847,-237.69984805,0.00012999,2]
[338888908,1727015431857,-186.11334194,0.00012999,2]
[338888909,1727015431867,-252422.98510187,0.00013,2]
[338888910,1727015431876,-32873.4423486,0.00013,2]
[338888911,1727015431889,-118890.05799836,0.00013,2]
[338888912,1727015431901,-351.1901123,0.00013,2]
[338888913,1727015431917,-3410.50407077,0.00013,2]
[338888948,1727015437785,-1.31063122,0.000129,2]
[338888950,1727015437897,-2498.68936878,0.000129,2]
[338888951,1727015437907,-12258.04288122,0.00013,2]
[338888952,1727015437919,-21242.7323858,0.00013,2]
[338888953,1727015438107,-947.52847,0.00013,2]
[338888954,1727015438119,-634.7042152,0.00013,2]
[338889002,1727015439591,-329.50705356,0.000129,2]
[338889003,1727015439600,-13316.481244,0.00013,2]
[338889004,1727015439614,-89099.0984953,0.00013,2]
[338889005,1727015439636,-46558.66822644,0.00013,2]
[338889006,1727015439659,-3580.724372,0.00013,2]
[338889007,1727015439678,-6757.96750055,0.00013,2]
[338889008,1727015439696,-1578.96352758,0.00013,2]
[338889009,1727015439707,-861.315,0.00013,2]
[338889010,1727015439777,-451.55385782,0.00013,2]
[338889011,1727015439788,-560.65347854,0.00013,2]
[338889012,1727015439926,-141788.03169756,0.00013,2]
[338889013,1727015439939,-60335.12837171,0.00013,2]
[338889018,1727015442693,-2125.86043622,0.00013,2]
[338889019,1727015442705,-835.04991627,0.00013,2]
[338889020,1727015442717,-584.94556398,0.00013,2]
[338889021,1727015442728,-31395.75256775,0.00013,2]
[338889022,1727015442739,-5150.83994801,0.00013,2]
[338889023,1727015442750,-674.74381166,0.00013,2]
[338889024,1727015442761,-660.19,0.00013,2]
[338889025,1727015442772,-2204.45423647,0.00013,2]
[338889026,1727015442783,-673.72260553,0.00013,2]
[338889027,1727015442794,-512.00786555,0.00013,2]
[338889028,1727015442804,-2115.73344882,0.00013,2]
[338889029,1727015442816,-3075.72210345,0.00013,2]
[338889030,1727015442832,-1269.9797806,0.00013,2]
[338889031,1727015442844,-135729.98338126,0.00013,2]
[338889032,1727015442856,-961.14525012,0.00013,2]
[338889033,1727015442867,-1175.26064,0.00013,2]
[338889034,1727015442879,-5403.05417497,0.00013,2]
[338889035,1727015442893,-1130.77964873,0.00013,2]
[338889036,1727015442904,-2076.93381065,0.00013,2]
[338889037,1727015442917,-3556.1365157,0.00013,2]
[338889038,1727015442930,-3799.999993,0.00013,2]
[338889039,1727015442943,-2743.43994,0.00013,2]
[338889040,1727015442956,-1006.62630079,0.00013,2]
[338889041,1727015442970,-352.72799642,0.00013,2]
[338889042,1727015442983,-513.18500005,0.00013,2]
[338889043,1727015442996,-695.84866301,0.00013,2]
[338889044,1727015443008,-5674.84497642,0.00013,2]
[338889045,1727015443023,-489.29187735,0.00013,2]
[338889046,1727015443044,-22212.84406301,0.00013,2]
[338889047,1727015443056,-1934352.8114352,0.00013,2]
[338889048,1727015443068,-701.666667,0.00013,2]
[338889050,1727015443079,-15843.63179293,0.00013,2]
[338889111,1727015445557,-5990.73861914,0.00013,2]
[338889112,1727015445570,-6305.58600001,0.00013,2]
[338889113,1727015445583,-6904.34327276,0.00013,2]
[338889114,1727015445654,-664.3539998,0.00013,2]
[338889115,1727015445801,-628.04358,0.00013,2]
[338889116,1727015445814,-336.99309153,0.00013,2]
[338889117,1727015445826,-315.79999999,0.00013,2]
[338889118,1727015445839,-3025.4746263,0.00013,2]
[338889119,1727015445896,-1650.24238056,0.00013,2]
[338889124,1727015544274,346.28,0.00010999,2]
[338889125,1727015568446,151.83,0.00011844,2]
[338889126,1727015655586,303.16,0.00012474,2]
[338889127,1727015763414,250.0,0.00012556,2]
[338889128,1727015828160,165.63,0.00012409,2]
[338889129,1727016078222,250.0,0.00010615,2]
[338889130,1727016078245,250.0,0.00010615,2]
[338889131,1727016100008,1286.0,0.00012311,2]
[338889132,1727016100249,250.0,0.00012311,2]
[338889133,1727016187357,169.27,0.00010959,2]
[338889134,1727016303740,150.0,0.00011688,2]
[338889135,1727016306300,150.0,0.00011688,2]
[338889136,1727016313581,150.0,0.00011688,2]
[338889137,1727016315774,150.0,0.00011688,2]
[338889138,1727016344604,250.0,0.00012294,2]
[338889139,1727016352807,600.45,0.00010959,2]
[338889140,1727016375336,151.58,0.00012321,2]
[338889141,1727016423333,510.0,0.00021917,120]
[338889146,1727016459890,150.0,0.00010425,2]
[338889147,1727016459913,150.0,0.00010425,2]
[338889148,1727016459938,72.91,0.00010425,2]
[338889149,1727016460285,225.55761357,0.00012689,2]
[338889150,1727016460313,147.35238643,0.00012689,2]
[338889151,1727016627330,159.8,0.00012401,2]
[338889158,1727016631998,-287.76,0.00012868,2]
[338889159,1727016632008,-1000.0,0.00012871,2]
[338889160,1727016632018,-150.0,0.00012899,2]
[338889161,1727016632028,-562.24,0.000129,2]
[338889162,1727016632191,-626.8636,0.000129,2]
[338889163,1727016632200,-1331.66479709,0.000129,2]
[338889164,1727016632466,-440.65564767,0.000129,2]
[338889165,1727016632477,-2421.09900074,0.000129,2]
[338889171,1727016638205,-1329.33793983,0.000129,2]
[338889172,1727016638220,-2005.00524,0.000129,2]
[338889173,1727016638234,-8502.55877467,0.000129,2]
[338889174,1727016638243,-1000.0,0.000129,2]
[338889175,1727016638252,-3134.1206,0.000129,2]
[338889176,1727016638265,-2514.0003,0.000129,2]
[338889177,1727016638274,-5385.9216,0.000129,2]
[338889178,1727016638283,-589.4386,0.000129,2]
[338889179,1727016638292,-831.48062448,0.000129,10]
[338889180,1727016638408,-2293.67658251,0.000129,10]
[338889181,1727016638506,-6260.0,0.000129,10]
[338889191,1727016639909,-1189.103628,0.000129,10]
[338889192,1727016639921,-9800.12754767,0.000129,10]
[338889193,1727016640011,-348.04553396,0.000129,10]
[338889194,1727016640022,-35619.51930543,0.000129,10]
[338889195,1727016640031,-164.31038801,0.000129,2]
[338889196,1727016640041,-158.32920976,0.000129,2]
[338889197,1727016640050,-201.34185824,0.000129,2]
[338889198,1727016640059,-2769.81664788,0.000129,2]
[338889199,1727016640068,-281.12545791,0.000129,2]
[338889200,1727016640077,-4923.34251312,0.000129,2]
[338889201,1727016640086,-325.76792471,0.000129,2]
[338889202,1727016640096,-233.17351533,0.000129,2]
[338889203,1727016640106,-174.22,0.00012926,2]
[338889204,1727016640115,-245.12622571,0.00012973,2]
[338889205,1727016640124,-217.34399043,0.00012986,2]
[338889206,1727016640133,-179.1312418,0.00012986,2]
[338889207,1727016640142,-261.94129289,0.00012986,2]
[338889208,1727016640151,-1688.54,0.00012999,2]
[338889209,1727016640161,-2810.07111775,0.00012999,2]
[338889261,1727016643012,-10.29888225,0.00012999,2]
[338889262,1727016643022,-186.34067264,0.00012999,2]
[338889263,1727016643031,-500.0,0.00012999,2]
[338889264,1727016643040,-500.0,0.00012999,2]
[338889265,1727016643050,-500.68734814,0.00012999,2]
[338889266,1727016643059,-585.28804131,0.00012999,2]
[338889267,1727016643116,-3.74195869,0.00012999,2]
[338889268,1727016643126,-500.0,0.00012999,2]
[338889269,1727016643135,-424.83254796,0.00012999,2]
[338889270,1727016643223,-75.16745204,0.00012999,2]
[338889271,1727016643232,-500.0,0.00012999,2]
[338889272,1727016643242,-19.83254796,0.00012999,2]
[338889314,1727016645978,-480.16745204,0.00012999,2]
[338889323,1727016646156,-500.0,0.00012999,2]
[338889324,1727016646175,-500.0,0.00012999,2]
[338889325,1727016646185,-491.21642974,0.00012999,2]
[338889326,1727016646197,-8.78357026,0.00012999,2]
[338889327,1727016646207,-500.0,0.00012999,2]
[338889328,1727016646216,-499.99,0.00012999,2]
[338889329,1727016646225,-500.0,0.00012999,2]
[338889331,1727016646235,-500.0,0.00012999,2]
[338889333,1727016646244,-500.0,0.00012999,2]
[338889334,1727016646253,-500.0,0.00012999,2]
[338889336,1727016646267,-500.0,0.00012999,2]
[338889338,1727016646276,-1074.21,0.00012999,2]
[338889340,1727016646285,-500.0,0.00012999,2]
[338889341,1727016646295,-500.0,0.00012999,2]
[338889342,1727016646305,-500.0,0.00012999,2]
[338889343,1727016646315,-500.0,0.00012999,2]
[338889344,1727016646324,-500.0,0.00012999,2]
[338889345,1727016646336,-500.0,0.00012999,2]
[338889346,1727016646347,-517.7780294,0.00012999,2]
[338889347,1727016646357,-4478.03077033,0.00013,2]
[338889348,1727016646372,-293.30499803,0.00013,2]
[338889349,1727016646383,-6272.2,0.00013,2]
[338889351,1727016646394,-1258.0949036,0.00013,2]
[338889366,1727016659992,1000.0,0.00012775,2]
[338889367,1727016676128,1989.84542445,0.00012,2]
[338889368,1727016678676,187.2,0.0001279,2]
[338889369,1727016745307,4183.6491,0.000128,2]
[338889370,1727016759505,1000.0,0.000128,2]
[338889371,1727016771304,2425.1044,0.000128,2]
[338889372,1727016778326,2118.8868,0.000128,2]
[338889373,1727016796678,2540.80250432,0.000128,2]
[338889374,1727016811736,161.35,0.00010959,2]
[338889375,1727016820901,2433.0538,0.000128,2]
[338889376,1727016843042,1050.0,0.00011,2]
[338889377,1727016863746,5859.1509,0.000128,2]
[338889378,1727016897057,413.8426,0.000128,2]
[338889379,1727016908172,7407.8899,0.000128,2]
[338889380,1727016930165,151.58,0.00012635,2]
[338889381,1727017016675,366.23,0.00010729,2]
[338889382,1727017030747,250.0,0.00012574,2]
[338889383,1727017151138,165.63,0.00011844,2]
[338889384,1727017233850,250.0,0.00012655,2]
[338889385,1727017256836,454.2364148,0.000126,2]
[338889386,1727017256858,602.83614614,0.000126,2]
[338889387,1727017286925,2286.72225387,0.000128,2]
[338889388,1727017337485,165.79,0.00012465,2]
[338889389,1727017422037,1000.0,0.00012337,2]
[338889390,1727017442059,153.16,0.00010959,2]
[338889391,1727017503707,150.0,0.00011688,2]
[338889392,1727017505968,150.0,0.00011688,2]
[338889393,1727017514625,150.0,0.00011688,2]
[338889394,1727017517008,292.38079082,0.00011688,2]
[338889395,1727017541686,155.2,0.00012323,2]
[338889396,1727017649343,510.0,0.00021917,120]
[338889397,1727017694859,250.0,0.00012479,2]
[338889415,1727017761973,250.0,0.00012386,2]
[338889416,1727017777234,2058.05002851,0.000128,2]
[338889417,1727017801937,2052.865,0.000128,2]
[338889418,1727017831952,-3886.28585161,0.00012889,2]
[338889419,1727017831962,-150.0,0.00012898,2]
[338889420,1727017831972,-300.0,0.00012898,2]
[338889421,1727017831981,-609.72133777,0.00012899,2]
[338889422,1727017831991,-486.09786443,0.00012899,2]
[338889423,1727017832000,-443.36489249,0.00012899,2]
[338889424,1727017832009,-1371.627,0.000129,2]
[338889425,1727017832021,-19804.48111477,0.000129,2]
[338889426,1727017832034,-285.29701288,0.000129,2]
[338889427,1727017832047,-15699.9359719,0.000129,2]
[338889428,1727017832061,-342.1,0.000129,2]
[338889429,1727017832074,-1108.19691343,0.000129,2]
[338889430,1727017832107,-108459.13350779,0.000129,2]
[338889434,1727017832433,-2781.33360902,0.000129,2]
[338889436,1727017832445,-648.78668318,0.000129,2]
[338889442,1727017838036,360.89,0.00010519,2]
[338889443,1727017838068,-479.23585153,0.000129,2]
[338889444,1727017838081,-500.0,0.000129,2]
[338889445,1727017838112,-28478.2236098,0.000129,2]
[338889446,1727017838123,-262188.58699711,0.000129,2]
[338889447,1727017838133,-2203.7053,0.000129,2]